[Event "7th Sharjah Masters 2024"]
[Site "Sharjah"]
[Date "2024.05.22"]
[Round "9.1"]
[White "Shankland, Sam"]
[Black "Murzin, Volodar"]
[Result "1/2-1/2"]
[ECO "A07"]
[WhiteElo "2671"]
[BlackElo "2634"]
[Annotator "TA"]
[PlyCount "49"]
[EventDate "2024.05.13"]
[EventType "swiss"]
[EventCountry "UAE"]
[SourceTitle "playchess.com"]
[Source "ChessBase"]
[SourceQuality "1"]
[TimeControl "5400+30"]

{[%evp 11,49,12,2,-6,-1,10,0,9,5,10,19,11,12,8,14,15,17,0,0,0,0,0,0,-9,-20,-21,-26,-22,-37,-35,-23,-36,-16,-17,-10,-17,-15,-11,-20,-19]} 1. Nf3 {[%emt 1:31:00]} d5 {[%emt 0:00:39]} 2. g3 {[%emt 0:00:00]} g6 {[%emt 0:00:07]} 3. Bg2 {[%emt 0:00:00]} Bg7 {[%emt 0:00:06]} 4. O-O {[%emt 0:00:00]} e5 {[%emt 0:00:54]} 5. d3 {[%emt 0:00:00]} Nc6 {[%emt 0:00:47]} 6. e4 {[%emt 0:00:00]} Nge7 {[%emt 0:01:20]} 7. c3 {[%emt 0:00:00]} dxe4 {[%emt 0:06:07]} 8. dxe4 {[%emt 0:00:00]} Qxd1 {[%emt 0:00:02]} 9. Rxd1 {[%emt 0:00:00]} Be6 {[%emt 0:00:35]} 10. Na3 {[%emt 0:00:00]} f6 {[%emt 0:01:48] Repels Ng5} 11. Be3 {[%emt 0:00:00]} Kf7 {[%emt 0:01:24]} 12. Bf1 {[%emt 0:00:00]} a6 {[%emt 0:07:06]} 13. Nc4 {[%emt 0:00:00]} Rhd8 {[%emt 0:04:16]} 14. Rdc1 {[%emt 0:00:00]} Ng8 {[%emt 0:19:20]} 15. b4 {[%emt 0:00:00]} Bh6 {[%emt 0:00:27]} 16. a4 {[%emt 0:00:00]} a5 {[%emt 0:11:42]} 17. b5 {[%emt 0:00:00] [#] Strongly threatening Bxh6.} Nb8 {[%emt 0:00:40]} 18. b6 {[%emt 0:00:00]} c6 {[%emt 0:03:05]} 19. Bxh6 {[%emt 0:00:00]} Nxh6 {[%emt 0:00:15]} 20. Nfd2 {[%emt 0:00:00]} Ke7 {[%emt 0:06:24]} 21. Nb3 {[%emt 0:00:00]} Bxc4 {[%emt 0:00:13]} 22. Bxc4 {[%emt 0:00:00] The position is equal.} Nd7 {[%emt 0:00:05]} 23. Rcb1 $1 {[%emt 0:00:00]} Nxb6 {[%emt 0:04:27]} 24. Nxa5 {[%emt 0:00:00]} Rxa5 {[%emt 0:00:09]} 25. Rxb6 {[%emt 0:00:00] Weighted Error Value: White=0.03 (flawless) /Black=0.03 (flawless) .  OK:         	White=6     	Black=8      Best:        	White=3     	Black=1      Strong:       	White=1     	---} 1/2-1/2

[Event "7th Sharjah Masters 2024"]
[Site "Sharjah"]
[Date "2024.05.22"]
[Round "9.2"]
[White "Erigaisi Arjun"]
[Black "Daneshvar, Bardiya"]
[Result "1/2-1/2"]
[ECO "C65"]
[WhiteElo "2762"]
[BlackElo "2582"]
[Annotator "TA"]
[PlyCount "95"]
[EventDate "2024.05.13"]
[EventType "swiss"]
[EventCountry "UAE"]
[SourceTitle "playchess.com"]
[Source "ChessBase"]
[SourceQuality "1"]
[TimeControl "5400+30"]

{[%evp 19,95,0,16,10,14,0,33,33,18,29,13,20,29,27,27,35,31,5,6,0,0,17,17,10,11,0,0,0,0,0,0,-24,-24,-16,-14,-27,-24,-105,-99,-89,-35,-41,0,-20,0,0,37,21,32,18,48,57,58,65,58,64,57,65,62,0,0,0,0,0,0,0,0,0,0,-1,0,0,0,-9,-8,-7,-6,-18]} 1. e4 {[%emt 0:02:48]} e5 {[%emt 0:00:03]} 2. Nf3 {[%emt 0:00:05]} Nc6 {[%emt 0:00:04]} 3. Bb5 {[%emt 0:00:06]} Nf6 {[%emt 0:00:05]} 4. d3 {[%emt 0:00:05]} Bc5 {[%emt 0:00:10]} 5. c3 {[%emt 0:00:06]} O-O {[%emt 0:00:22]} 6. O-O {[%emt 0:00:07] C65: Ruy Lopez: Berlin Defence (3...Nf6), unusual lines and 4 0-0 Bc5.} Re8 {[%emt 0:00:08]} 7. Bg5 {[%emt 0:00:41]} a6 {[%emt 0:00:50]} 8. Bxc6 {[%emt 0:00:29]} dxc6 {[%emt 0:03:00]} 9. h3 {[%emt 0:00:20]} Bf8 {[%emt 0:05:40]} 10. Re1 {[%emt 0:00:18]} Qd6 $146 {[%emt 0:05:05]} ({Predecessor:} 10... c5 11. d4 exd4 12. e5 h6 13. Bh4 dxc3 14. Nxc3 {1-0 Kim,V (2315)-Taffijn,M (2160) W-ch WS/M/893 email 2023}) 11. d4 {[%emt 0:11:54]} Nd7 {[%emt 0:00:30]} 12. Bh4 {[%emt 0:00:07]} Qg6 {[%emt 0:07:18]} 13. Bg3 {[%emt 0:05:16]} exd4 {[%emt 0:02:09]} 14. Nh4 {[%emt 0:00:15]} Qg5 {[%emt 0:13:44]} 15. cxd4 {[%emt 0:00:53]} ({Reject} 15. Qxd4 Bc5 16. Nf3 Qg6 $17) 15... Bd6 {[%emt 0:04:11]} 16. Bxd6 {[%emt 0:06:38]} cxd6 {[%emt 0:00:46]} 17. Nf5 {[%emt 0:08:03]} d5 {[%emt 0:11:52]} 18. Nc3 {[%emt 0:12:14]} Nf6 {[%emt 0:12:01]} 19. Ng3 {[%emt 0:07:16]} (19. Nd6 {is more complex.} Bxh3 20. Qf3 Bg4 21. Qg3) 19... dxe4 {[%emt 0:02:45]} 20. Ncxe4 {[%emt 0:00:07]} Nxe4 {[%emt 0:00:07]} 21. Nxe4 {[%emt 0:00:04]} Qd8 $1 {[%emt 0:00:04]} 22. Qh5 {[%emt 0:03:21]} h6 {[%emt 0:08:46]} 23. Re3 {[%emt 0:04:21]} Be6 {[%emt 0:02:09]} 24. Rg3 {[%emt 0:01:30]} Kh8 {[%emt 0:01:33]} 25. Qe5 {[%emt 0:01:55]} f6 {[%emt 0:01:24]} 26. Qc5 {[%emt 0:02:23]} b6 {[%emt 0:02:56]} 27. Qc3 {[%emt 0:02:48]} (27. Qxc6 $2 {perishes.} Bd5 (27... Qxd4 28. Nc3 $11) 28. Qc2 Bxe4 $19) 27... Qd5 {[%emt 0:01:07]} (27... Bd5 $5 28. Nd2 $8 b5 $15) 28. Re3 {[%emt 0:01:58] [#]} (28. Qd3 $11 {remains equal.} Bf7 29. Nc3) 28... Bxh3 $1 $17 {[%emt 0:01:56]} 29. Rae1 {[%emt 0:00:06]} Bd7 {[%emt 0:03:06]} (29... Bxg2 $17 30. Nxf6 (30. Kxg2 $2 f5 $17) 30... Rxe3 31. Nxd5 Rxc3 32. Nxc3 Bf3) 30. Qb4 $15 {[%emt 0:00:17]} Rab8 {[%emt 0:04:09]} 31. Nc3 {[%emt 0:01:53]} (31. Nxf6 $5 gxf6 32. Rxe8+ Rxe8 33. Rxe8+ Bxe8 34. Qf8+ Kh7 (34... Qg8 35. Qxh6+ Qh7 36. Qf8+ Qg8 37. Qh6+ Qh7 38. Qf8+ Qg8 39. Qh6+ $11) 35. Qxe8 $11) 31... Qf7 {[%emt 0:01:26]} 32. Rxe8+ {[%emt 0:00:38]} Bxe8 {[%emt 0:00:53]} 33. Qd6 {[%emt 0:00:11]} Rc8 {[%emt 0:01:04]} 34. Na4 {[%emt 0:02:35]} c5 {[%emt 0:01:16]} 35. Nxb6 {[%emt 0:00:53]} Rc6 {[%emt 0:00:02]} 36. Qb8 $1 {[%emt 0:01:17]} Re6 {[%emt 0:00:02]} 37. Rxe6 {[%emt 0:00:02]} Qxe6 {[%emt 0:00:02]} 38. dxc5 {[%emt 0:00:21]} Kh7 {[%emt 0:01:31]} 39. Kh2 {[%emt 0:03:07]} (39. Qf4 $14) 39... Qe4 $11 {[%emt 0:00:13]} 40. Qg3 {[%emt 0:01:33]} Qf5 {[%emt 0:00:54]} 41. Nc4 {[%emt 0:10:44]} Qh5+ {[%emt 0:01:14]} 42. Qh3 {[%emt 0:00:06]} Qxc5 {[%emt 0:00:03]} 43. Qd3+ {[%emt 0:00:05]} Bg6 {[%emt 0:00:33]} 44. Qe2 {[%emt 0:00:05]} Qd4 {[%emt 0:01:35]} 45. b3 {[%emt 0:00:28]} Qf4+ {[%emt 0:00:30]} 46. g3 {[%emt 0:00:50]} Qd4 {[%emt 0:00:10]} 47. Ne3 {[%emt 0:00:17]} a5 {[%emt 0:00:59]} 48. Ng2 {[%emt 0:03:06]} 1/2-1/2

[Event "7th Sharjah Masters 2024"]
[Site "Sharjah"]
[Date "2024.05.22"]
[Round "9.4"]
[White "Suleymanli, Aydin"]
[Black "Sarana, Alexey"]
[Result "1/2-1/2"]
[ECO "B90"]
[WhiteElo "2621"]
[BlackElo "2706"]
[Annotator "TA"]
[PlyCount "40"]
[EventDate "2024.05.13"]
[EventType "swiss"]
[EventCountry "UAE"]
[SourceTitle "playchess.com"]
[Source "ChessBase"]
[SourceQuality "1"]
[TimeControl "5400+30"]

{[%evp 13,40,16,16,9,13,0,0,0,0,0,7,0,6,2,18,14,12,0,18,10,12,11,16,0,4,0,17,0,0]} 1. e4 {[%emt 0:00:14]} c5 {[%emt 0:00:05]} 2. Nf3 {[%emt 0:00:09]} d6 {[%emt 0:00:06]} 3. d4 {[%emt 0:00:35]} cxd4 {[%emt 0:00:06]} 4. Nxd4 {[%emt 0:00:03]} Nf6 {[%emt 0:00:06]} 5. Nc3 {[%emt 0:00:06]} a6 {[%emt 0:00:06]} 6. Bd3 {[%emt 0:00:07]} g6 {[%emt 0:00:34]} 7. O-O {[%emt 0:03:34]} Bg7 {[%emt 0:00:53] The position is equal.} 8. Re1 {[%emt 0:01:57]} O-O {[%emt 0:02:41]} 9. a4 {[%emt 0:00:07]} b6 {[%emt 0:03:32]} 10. Bf1 {[%emt 0:01:14]} Bb7 {[%emt 0:00:15]} 11. Bg5 {[%emt 0:00:19]} h6 {[%emt 0:01:12]} 12. Be3 {[%emt 0:00:21]} Nbd7 {[%emt 0:01:09]} 13. f3 {[%emt 0:01:00]} Qc7 {[%emt 0:02:19]} 14. Qd2 {[%emt 0:00:40]} Kh7 {[%emt 0:00:06]} 15. Rad1 {[%emt 0:02:05]} Rfd8 {[%emt 0:03:55]} 16. Qf2 {[%emt 0:02:58]} e6 {[%emt 0:05:08]} 17. Nb3 {[%emt 0:02:06]} Bc6 {[%emt 0:01:42]} 18. Nd4 {[%emt 0:04:45]} Bb7 {[%emt 0:00:39]} 19. Nb3 {[%emt 0:05:38]} Bc6 {[%emt 0:01:15]} 20. Nd4 {[%emt 0:28:28]} Bb7 {[%emt 0:02:39] Not much happened in this game.   Weighted Error Value: White=0.05 (flawless) /Black=0.03 (flawless) .  OK:         	White=5     	Black=6      Best:        	---       	Black=2} 1/2-1/2

[Event "7th Sharjah Masters 2024"]
[Site "Sharjah"]
[Date "2024.05.22"]
[Round "9.5"]
[White "Salem, A.R. Saleh"]
[Black "Vokhidov, Shamsiddin"]
[Result "0-1"]
[ECO "E54"]
[WhiteElo "2629"]
[BlackElo "2592"]
[Annotator "TA"]
[PlyCount "76"]
[EventDate "2024.05.13"]
[EventType "swiss"]
[EventCountry "UAE"]
[SourceTitle "playchess.com"]
[Source "ChessBase"]
[SourceQuality "1"]
[TimeControl "5400+30"]

{[%evp 20,76,29,0,3,0,0,-16,0,0,0,-30,-30,-35,0,0,0,0,0,0,47,-35,-40,-64,-74,-147,-129,-131,-142,-144,-92,-109,-95,-213,-209,-243,-244,-239,-239,-313,-314,-335,-328,-328,-332,-320,-313,-347,-307,-478,-481,-480,-485,-492,-468,-455,-308,-584,-518]} 1. d4 {[%emt 1:31:00]} Nf6 {[%emt 1:31:00]} 2. c4 {[%emt 0:00:30]} e6 {[%emt 0:00:30]} 3. Nc3 {[%emt 0:00:30]} Bb4 {[%emt 0:00:30]} 4. e3 {[%emt 0:00:30]} O-O {[%emt 0:00:30]} 5. Bd3 {[%emt 0:00:30]} d5 {[%emt 0:00:30]} 6. Nf3 {[%emt 0:00:30]} dxc4 {[%emt 0:00:30]} 7. Bxc4 {[%emt 0:00:30]} c5 {[%emt 0:00:30]} 8. O-O {[%emt 0:00:30]} cxd4 {[%emt 0:00:30]} 9. exd4 {[%emt 0:00:30]} b6 {[%emt 0:00:30]} 10. Bg5 {[%emt 0:00:30]} Bb7 {[%emt 0:00:30]} 11. Re1 {[%emt 0:00:30]} Nbd7 {[%emt 0:00:30]} 12. Bb3 {[%emt 0:00:30]} Rc8 {[%emt 0:00:30]} 13. Re3 {[%emt 0:00:30]} Qc7 {[%emt 0:00:30] White must now prevent ...Ng4. The position is equal.} 14. Nb5 {[%emt 0:00:30]} Qb8 {[%emt 0:00:30]} 15. Ne5 {[%emt 0:00:30] Repels Ng4} Nxe5 {[%emt 0:00:30]} 16. Rxe5 {[%emt 0:00:30]} Nd5 {[%emt 0:00:30] ...f6 is the strong threat.} 17. Qg4 {[%emt 0:00:30] Strongly threatening Bxd5.} Kh8 {[%emt 0:00:30]} 18. a3 {[%emt 0:00:30]} Bd6 {[%emt 0:00:30]} 19. Bxd5 {[%emt 0:00:30]} Bxe5 {[%emt 0:00:30]} (19... Bxd5 $11 20. Bf4 (20. Nxd6 Qxd6 21. Bd2 Rfd8 $15) 20... Rfd8) 20. dxe5 {[%emt 0:00:30]} (20. Bxb7 $14 Bxh2+ 21. Kh1 Qxb7 22. Kxh2) 20... Bxd5 $15 {[%emt 0:00:30]} (20... exd5 21. Nd6 Rc7 22. Rd1 $11) 21. Nd6 {[%emt 0:00:30][%cal Og5f6] White wants to mate with Bf6!} Rc7 $1 {[%emt 0:00:30]} 22. Rd1 {[%emt 0:00:30]} ({White should try} 22. Qh4) 22... f6 $17 {[%emt 0:00:30]} 23. Bf4 {[%emt 0:00:30]} Qd8 {[%emt 0:00:30]} 24. h4 {[%emt 0:00:30]} Rd7 {[%emt 0:00:30]} (24... Qd7 $142 {Hoping for ...Qa4.} 25. Rd2 f5) 25. Rd3 {[%emt 0:00:30]} Be4 {[%emt 0:00:30]} 26. Rg3 {[%emt 0:00:30] [#]} (26. Rc3 $17 f5 27. Qh3) 26... Bf5 $1 $19 {[%emt 0:00:30]} 27. Qf3 {[%emt 0:00:30]} (27. Qe2 fxe5) 27... fxe5 {[%emt 0:00:30]} 28. Bxe5 {[%emt 0:00:30]} Bg6 $1 {[%emt 0:00:30]} (28... Rxd6 29. Bxg7+ Kg8 30. Bf6+ Bg6 31. Bxd8 Rxf3 32. gxf3 Rxd8 33. h5 $15) 29. Qc6 {[%emt 0:00:30] [#]} Rc7 $1 {[%emt 0:00:30]} 30. Qa4 {[%emt 0:00:30][%cal Oh4h5] [#]} Rc5 $1 {[%emt 0:00:30]} ({Inferior is} 30... Rc1+ 31. Kh2 Re1 (31... Rxf2 32. Qd4 $14) 32. Qd4 Rxe5 33. Qxe5 Qxh4+ (33... Rxf2 $2 34. h5 $18) 34. Kg1 $15) 31. Nb7 {[%emt 0:00:30]} Rc1+ {[%emt 0:00:30]} 32. Kh2 Qd5 {[%emt 0:00:30]} 33. Qb4 {[%emt 0:01:00]} Rcc8 {[%emt 0:00:30]} ({Don't play} 33... Rxf2 34. Qd6 Kg8 (34... Qxb7 35. Qd8+) 35. b3 $19) 34. Rg5 {[%emt 0:00:30]} (34. Qd4 $142 Qxd4 (34... Qxb7 $2 35. h5 $19) 35. Bxd4) 34... Qxb7 {[%emt 0:00:30]} 35. h5 Rf5 {[%emt 0:00:30]} 36. Qh4 {[%emt 0:01:00]} Rxg5 {[%emt 0:00:30]} 37. Qxg5 {[%emt 0:00:30]} Qf7 {[%emt 0:00:30][%csl LRf2,LRh5]} 38. h6 $2 {[%emt 0:00:30]} (38. hxg6 Qxg6 39. Qxg6 hxg6 40. Kg3) 38... Kg8 {[%emt 0:00:30] Weighted Error Value: White=0.43/Black=0.16 (very precise) .  Mistake:       	White=5     	Black=2      Inaccurate:     	White=2     	Black=2      OK:         	White=10    	Black=11     Best:        	White=2     	Black=1      Strong:       	---       	Black=3      Brilliant:      	---       	Black=1} 0-1

[Event "7th Sharjah Masters 2024"]
[Site "Sharjah"]
[Date "2024.05.22"]
[Round "9.6"]
[White "Yu, Yangyi"]
[Black "Gurel, Ediz"]
[Result "1-0"]
[ECO "C42"]
[WhiteElo "2729"]
[BlackElo "2578"]
[Annotator "TA"]
[PlyCount "123"]
[EventDate "2024.05.13"]
[EventType "swiss"]
[EventCountry "UAE"]
[SourceTitle "playchess.com"]
[Source "ChessBase"]
[SourceQuality "1"]
[TimeControl "5400+30"]

{[%evp 46,123,4,1,4,4,8,22,16,-20,-11,-12,0,0,0,0,22,0,0,0,0,-8,0,0,77,77,84,90,87,89,114,32,87,83,115,72,86,84,76,69,132,127,124,129,129,88,110,134,163,154,220,270,271,274,281,274,239,224,201,211,193,185,446,441,466,437,572,563,1113,1059,814,972,1156,1048,1127,1008,29969,29966,29986,29987]} 1. e4 {[%emt 1:31:00]} e5 {[%emt 1:31:00]} 2. Nf3 {[%emt 0:00:30]} Nf6 {[%emt 0:00:30]} 3. Nxe5 {[%emt 0:00:30]} d6 {[%emt 0:00:30]} 4. Nf3 {[%emt 0:00:30]} Nxe4 {[%emt 0:00:30]} 5. d4 {[%emt 0:00:30]} d5 {[%emt 0:00:30]} 6. Bd3 {[%emt 0:00:30]} Bd6 {[%emt 0:00:30]} 7. O-O {[%emt 0:00:30]} O-O {[%emt 0:00:30]} 8. c4 {[%emt 0:00:30]} c6 {[%emt 0:00:30]} 9. Re1 {[%emt 0:00:30]} Bf5 {[%emt 0:00:30]} 10. Qc2 {[%emt 0:00:30] C42: Petroff Defence: 3 Nxe5 and unusual White 3rd moves.} Na6 {[%emt 0:00:30] 10...Na6 is better than 10...Bg6.} 11. a3 {[%emt 0:00:30]} Bg6 {[%emt 0:00:30]} 12. c5 {[%emt 0:00:30]} Bb8 {[%emt 0:00:30]} 13. Nc3 {[%emt 0:00:30]} f5 {[%emt 0:00:30]} 14. Ne2 {[%emt 0:00:30]} Nc7 {[%emt 0:00:30]} 15. Nf4 {[%emt 0:00:30]} Be8 {[%emt 0:00:30]} 16. Ne5 {[%emt 0:00:30]} g5 {[%emt 0:00:30]} 17. Ne2 {[%emt 0:00:30]} Ne6 {[%emt 0:00:30]} 18. f3 {[%emt 0:00:30]} Qf6 {[%emt 0:00:30]} 19. fxe4 {[%emt 0:00:30]} fxe4 {[%emt 0:00:30]} 20. Ng4 $5 {[%emt 0:00:30][%mdl 4] Exploring less charted territory.} Qg6 {[%emt 0:00:30]} 21. Bxe4 {[%emt 0:00:30]} Qxe4 {[%emt 0:00:30]} 22. Qxe4 {[%emt 0:00:30]} dxe4 {[%emt 0:00:30]} 23. Be3 {[%emt 0:00:30]} Bh5 {[%emt 0:00:30]} 24. Nf2 {[%emt 0:00:30]} Bf4 {[%emt 0:00:30]} 25. Ng3 {[%emt 0:00:30]} Bxg3 {[%emt 0:00:30]} 26. hxg3 {[%emt 0:00:30]} Bg6 {[%emt 0:00:30]} 27. a4 $146 {[%emt 0:00:30]} ({Predecessor:} 27. Ng4 Rad8 {½-½ Kuhne,D (2469)-Bobykin,K (2479) WC-2018-T-00001}) 27... Rad8 {[%emt 0:00:30]} 28. Red1 {[%emt 0:00:30]} Rd5 {[%emt 0:00:30]} 29. a5 {[%emt 0:00:30]} a6 {[%emt 0:00:30]} 30. Ra4 {[%emt 0:00:30]} Rfd8 {[%emt 0:00:30]} 31. Rc4 {[%emt 0:00:30]} (31. Rb4 $5) 31... Kg7 {[%emt 0:00:30]} 32. Rd2 {[%emt 0:00:30]} h6 {[%emt 0:00:30]} 33. Nd1 {[%emt 0:00:30]} Nc7 {[%emt 0:00:30]} 34. Rb4 {[%emt 0:00:30]} Nb5 {[%emt 0:00:30] [#]} (34... R5d7 $11 {keeps the balance.}) 35. Nc3 $1 $16 {[%emt 0:00:30]} R5d7 {[%emt 0:00:30] [#]} 36. d5 $1 {[%emt 0:00:30]} cxd5 {[%emt 0:00:30]} (36... Nxc3 37. bxc3 Rxd5 (37... cxd5 $2 38. Rdb2 $18) 38. Bd4+ Kh7 39. Rxb7+ R8d7 40. Rb8) 37. Nxb5 {[%emt 0:00:30]} axb5 {[%emt 0:00:30]} 38. Rdd4 {[%emt 0:00:30]} (38. Bd4+ $16 Kg8 39. Rxb5) 38... Kf6 {[%emt 0:00:30]} ({Black should try} 38... Ra8 $14) 39. Rxb5 {[%emt 0:00:30]} Ke5 {[%emt 0:00:30]} 40. Rdb4 {[%emt 0:00:30]} Kf5 {[%emt 0:00:30]} 41. Bd4 {[%emt 0:00:30]} (41. Rxb7 Rxb7 42. Rxb7 d4 43. Bxd4 Rxd4 $19) 41... Ra8 {[%emt 0:00:30]} 42. Kf2 {[%emt 0:00:30]} Kg4 {[%emt 0:00:30]} (42... Be8 $1 $14) 43. Rxb7 $16 {[%emt 0:00:30]} Rxb7 {[%emt 0:00:30]} 44. Rxb7 {[%emt 0:00:30]} Rxa5 {[%emt 0:00:30]} 45. Rd7 {[%emt 0:00:30]} Ra4 {[%emt 0:00:30]} 46. Rxd5 {[%emt 0:00:30]} Rc4 {[%emt 0:00:30]} 47. Ke3 {[%emt 0:00:30]} Kxg3 {[%emt 0:00:30]} (47... h5 $16 48. Bc3 Bf5) 48. Rd6 $18 {[%emt 0:00:30]} Be8 {[%emt 0:00:30]} 49. Rxh6 {[%emt 0:00:30]} ({Weaker is} 49. Kxe4 h5 $16) 49... g4 {[%emt 0:00:30]} 50. Re6 {[%emt 0:00:30]} (50. Kxe4 Kxg2 51. Re6 Ba4 $18) 50... Bd7 {[%emt 0:00:30]} 51. Re7 {[%emt 0:00:30]} ({Less strong is} 51. Rxe4 Kxg2 52. Re7 Bf5 $16) 51... Bf5 {[%emt 0:00:30]} 52. Rf7 {[%emt 0:00:30]} Be6 {[%emt 0:00:30]} 53. Rf6 {[%emt 0:00:30]} Bd7 $2 {[%emt 0:00:30]} (53... Bd5 {is a better defense.} 54. Rg6 Ba8) 54. Kxe4 $18 {[%emt 0:00:30]} Kxg2 {[%emt 0:00:30]} 55. Kd5 {[%emt 0:00:30]} Rc1 {[%emt 0:00:30]} 56. c6 {[%emt 0:00:30]} Be8 {[%emt 0:00:30]} 57. b4 {[%emt 0:00:30]} Rb1 {[%emt 0:00:30]} 58. Kc5 {[%emt 0:00:30]} Rc1+ {[%emt 0:00:30]} 59. Kb6 g3 {[%emt 0:00:30]} 60. Bc5 {[%emt 0:01:00]} Kh3 {[%emt 0:00:30]} 61. Rf8 {[%emt 0:00:30]} g2 {[%emt 0:00:30]} 62. Rxe8 {[%emt 0:00:30]} 1-0

[Event "7th Sharjah Masters 2024"]
[Site "Sharjah"]
[Date "2024.05.22"]
[Round "9.8"]
[White "Mendonca, Leon Luke"]
[Black "Zemlyanskii, Ivan"]
[Result "0-1"]
[ECO "B72"]
[WhiteElo "2640"]
[BlackElo "2516"]
[Annotator "TA"]
[PlyCount "92"]
[EventDate "2024.05.13"]
[EventType "swiss"]
[EventCountry "UAE"]
[SourceTitle "playchess.com"]
[Source "ChessBase"]
[SourceQuality "1"]
[TimeControl "5400+30"]

{[%evp 32,92,145,142,157,115,133,-5,0,-25,0,0,26,-17,0,0,0,-198,-200,-194,-209,-204,-196,-190,-202,-203,-137,-182,-168,-166,-145,-212,-219,-243,-216,-195,-256,-246,-131,-146,-139,-408,-239,-287,-266,-264,-250,-354,-357,-343,-361,-406,-250,-241,-155,-1030,-957,-1058,-1039,-1033,-981,-943,-922]} 1. e4 {[%emt 1:31:00]} c5 {[%emt 1:31:00]} 2. Nf3 {[%emt 0:00:30]} d6 {[%emt 0:00:30]} 3. d4 {[%emt 0:00:30]} cxd4 {[%emt 0:00:30]} 4. Nxd4 {[%emt 0:00:30]} Nf6 {[%emt 0:00:30]} 5. Nc3 {[%emt 0:00:30]} a6 {[%emt 0:00:30]} 6. Bd3 {[%emt 0:00:30]} g6 {[%emt 0:00:30]} 7. f3 {[%emt 0:00:30]} Bg7 {[%emt 0:00:30]} 8. Be3 {[%emt 0:00:30]} Nbd7 $1 {[%emt 0:00:30][%mdl 4] outshines the older 8...Nc6. B72: Sicilian Dragon: 6 Be3, lines with h3+Bc4 and sidelines.} 9. Qd2 {[%emt 0:00:30]} b5 {[%emt 0:00:30]} 10. O-O-O {[%emt 0:00:30]} Bb7 {[%emt 0:00:30]} 11. Kb1 {[%emt 0:00:30]} O-O $146 {[%emt 0:00:30]} ({Predecessor:} 11... h5 12. Rhe1 Rb8 13. Nb3 Qc7 14. Ba7 Rc8 15. Bd4 e5 16. Be3 O-O 17. a3 d5 18. Nxd5 Bxd5 19. exd5 Nxd5 {½-½ Kireev,S (2345)-B Oliveira,M (2321) FICGS W-ch st1 gM 01 email 2022 (1)}) 12. h4 {[%emt 0:00:30]} h5 {[%emt 0:00:30]} 13. Bh6 {[%emt 0:00:30]} e5 {[%emt 0:00:30]} 14. Nb3 {[%emt 0:00:30]} Rc8 {[%emt 0:00:30]} 15. g4 {[%emt 0:00:30]} b4 {[%emt 0:00:30]} 16. Ne2 {[%emt 0:00:30]} hxg4 {[%emt 0:00:30]} 17. Ng3 {[%emt 0:00:30]} gxf3 {[%emt 0:00:30]} 18. Bxg7 $1 {[%emt 0:00:30]} Kxg7 {[%emt 0:00:30] [#]} 19. Qg5 {[%emt 0:00:30]} (19. h5 $1 $16) 19... Nh7 $11 {[%emt 0:00:30]} 20. Qg4 {[%emt 0:00:30]} Ndf6 {[%emt 0:00:30]} 21. Qxf3 {[%emt 0:00:30]} d5 {[%emt 0:00:30]} 22. h5 {[%emt 0:00:30]} dxe4 {[%emt 0:00:30]} 23. Nxe4 {[%emt 0:00:30]} Qe7 {[%emt 0:00:30]} (23... gxh5 $2 24. Qg3+ Ng4 25. Rxh5 $18) (23... Nxh5 $2 24. Rxh5 $18) 24. Rhg1 $2 {[%emt 0:00:30]} (24. Qg2 $11 Bxe4 25. Bxe4 Nxe4 26. Qxe4) 24... Nxe4 $19 {[%emt 0:00:30]} 25. Bxe4 {[%emt 0:00:30]} Ng5 {[%emt 0:00:30]} 26. Rxg5 {[%emt 0:00:30]} Bxe4 {[%emt 0:00:30]} 27. Qxe4 {[%emt 0:00:30]} Qxg5 {[%emt 0:00:30]} 28. hxg6 {[%emt 0:00:30]} Rcd8 {[%emt 0:00:30]} (28... fxg6 $2 29. Qb7+ Rf7 (29... Kg8 $2 30. Rh1 $18) 30. Qxc8 $18) (28... Qxg6 29. Qxe5+ f6 (29... Kg8 30. Qh2 $15) 30. Qe7+ Rf7 31. Qe2 $11) 29. Rh1 {[%emt 0:00:30]} fxg6 {[%emt 0:00:30]} ({Not} 29... Qxg6 30. Qe3 (30. Qxb4 $2 {too greedy.} Rh8 $19) (30. Qxe5+ f6 $14) 30... Qd6 31. Qg5+ Qg6 32. Qe3 $14 (32. Qxe5+ f6 $14)) 30. Qxb4 {[%emt 0:00:30]} Rde8 {[%emt 0:00:30]} 31. a3 {[%emt 0:00:30] [#]} (31. Qc5 $17 {was necessary.}) 31... Qg2 $1 $19 {[%emt 0:00:30]} 32. Qe1 {[%emt 0:00:30]} Qd5 {[%emt 0:00:30]} 33. Rg1 {[%emt 0:00:30]} e4 {[%emt 0:00:30]} 34. Qg3 {[%emt 0:00:30]} Re6 {[%emt 0:00:30]} (34... Rf6 $19 {Strongly threatening ...e3.} 35. Qe3 Rf3 36. Qa7+ Qf7 37. Qxa6 e3) 35. Qe3 $17 {[%emt 0:00:30]} Ref6 {[%emt 0:00:30]} 36. Rg5 $2 {[%emt 0:00:30][%mdl 8192]} (36. Nc1 $17) 36... Rf5 {[%emt 0:00:30]} (36... Rf1+ $142 37. Nc1 R8f3 38. Qa7+ Rf7) 37. Rg2 $19 {[%emt 0:00:30]} Rf3 {[%emt 0:00:30]} 38. Qa7+ {[%emt 0:00:30]} R8f7 {[%emt 0:00:30]} 39. Qxa6 {[%emt 0:00:30]} (39. Qb6 {was forced.} R3f6 40. Qe3 Qd1+ 41. Ka2) 39... R3f6 $19 {[%emt 0:00:30]} 40. Qc8 {[%emt 0:00:30]} Qe5 {[%emt 0:00:30]} 41. Qh3 {[%emt 0:00:30]} Rf3 {[%emt 0:00:30]} 42. Qh4 {[%emt 0:00:30]} Qf4 {[%emt 0:00:30]} 43. Qd8 $2 {[%emt 0:00:30]} (43. Rg4 $17 Qf6 44. Qxf6+ R3xf6 45. Rxe4) 43... Rxb3 $19 {[%emt 0:00:30]} 44. Qd4+ {[%emt 0:00:30]} Kh7 {[%emt 0:00:30]} 45. Ka2 {[%emt 0:00:30]} Rf3 {[%emt 0:00:30]} 46. Rg1 {[%emt 0:00:30]} Rh3 {[%emt 0:00:30]} 0-1